bitfinex-derivatives/quotes_BNBF0:USTF0_20250630
["timestamp","ask_amount","ask_price","bid_price","bid_amount"]
[1751269742061,2.2682741,654.9,654.84,1.922]
[1751269742259,2.2682741,654.95,654.84,1.922]
[1751269742460,2.2682741,654.93,654.84,1.922]
[1751269743159,2.2682741,654.94,654.84,1.922]
[1751269743458,2.2682741,654.99,654.84,1.922]
[1751269744162,2.2682741,655.0,654.84,1.922]
[1751269745265,2.2682741,655.01,654.84,1.922]
[1751269745460,2.2682741,655.0,654.84,1.922]
[1751269745864,2.2682741,655.04,654.84,1.922]
[1751269747162,2.2682741,655.05,654.84,1.922]
[1751269747360,2.2682741,655.06,654.84,1.922]
[1751269748864,2.2682741,655.07,654.84,1.922]
[1751269750166,2.2682741,655.08,654.84,1.922]
[1751269750566,2.2682741,655.07,654.84,1.922]
[1751269751170,2.2682741,655.08,654.84,1.922]
[1751269752071,0.26577566,655.1,654.84,1.922]
[1751269753371,2.53404976,655.1,654.84,1.922]
[1751269753876,2.53404976,655.1,654.85,1.983]
[1751269754167,0.26577566,655.1,654.85,1.983]
[1751269767289,2.53404976,655.1,654.85,1.983]
[1751269767690,0.26577566,655.1,654.85,1.983]
[1751269768690,2.2682741,655.09,654.85,1.983]
[1751269770289,2.2682741,655.08,654.85,1.983]
[1751269770690,2.2682741,655.06,654.85,1.983]
[1751269771093,2.2682741,655.06,654.86,2.699]
[1751269772891,2.2682741,655.05,654.86,2.699]
[1751269773592,2.2682741,655.07,654.86,2.699]
[1751269773795,2.2682741,655.06,654.86,2.699]
[1751269774297,2.2682741,655.05,654.86,2.699]
[1751269777192,2.2682741,655.03,654.86,2.699]
[1751269777597,2.2682741,655.02,654.86,2.699]
[1751269778197,2.2682741,655.03,654.86,2.699]
[1751269778397,2.2682741,655.02,654.86,2.699]
[1751269778694,2.2682741,655.09,654.86,2.699]
[1751269779197,0.26577566,655.1,654.86,2.699]
[1751269780298,2.53404976,655.1,654.86,2.699]
[1751269780499,0.26577566,655.1,654.86,2.699]
[1751269781398,2.53404976,655.1,654.86,2.699]
[1751269782796,0.26577566,655.1,654.86,2.699]
[1751269783200,2.53404976,655.1,654.86,2.699]
[1751269784301,2.2682741,655.09,654.86,2.699]
[1751269784501,2.53404976,655.1,654.86,2.699]
[1751269785104,2.2682741,655.09,654.86,2.699]
[1751269787406,2.2682741,655.09,654.87,2.336]
[1751269788606,2.2682741,655.08,654.87,2.336]
[1751269789106,0.26577566,655.1,654.87,2.336]
[1751269792409,2.53404976,655.1,654.87,2.336]
[1751269794511,0.26577566,655.1,654.87,2.336]
[1751269804318,0.26577566,655.1,654.76,6.409]
[1751269804818,2.2682741,655.09,654.76,6.409]
[1751269807517,2.2682741,655.08,654.76,6.409]
[1751269807718,2.2682741,655.08,654.77,2.689]
[1751269808218,2.2682741,655.08,654.78,2.62]
[1751269808518,2.2682741,655.06,654.78,2.62]
[1751269809523,2.2682741,655.07,654.78,2.62]
[1751269810123,2.2682741,655.06,654.78,2.62]
[1751269811220,0.26577566,655.1,654.78,2.62]
[1751269811221,2.2682741,655.05,654.78,2.62]
[1751269811820,2.2682741,655.02,654.78,2.62]
[1751269813524,2.2682741,654.99,654.78,2.62]
[1751269813824,2.2682741,654.98,654.78,2.62]
[1751269814725,2.2682741,654.97,654.78,2.62]
[1751269815125,2.2682741,654.96,654.78,2.62]
[1751269815927,2.2682741,655.02,654.78,2.62]
[1751269818229,2.2682741,655.01,654.78,2.62]
[1751269818830,2.2682741,655.0,654.78,2.62]
[1751269819430,2.2682741,654.99,654.78,2.62]
[1751269820831,2.2682741,655.0,654.78,2.62]
[1751269823437,2.2682741,655.04,654.78,2.62]
[1751269823936,2.2682741,655.01,654.78,2.62]
[1751269826036,2.2682741,655.02,654.78,2.62]
[1751269826736,2.2682741,655.06,654.78,2.62]
[1751269828939,2.2682741,655.07,654.78,2.62]
[1751269829238,0.26577566,655.1,654.78,2.62]
[1751269829239,2.2682741,655.08,654.78,2.62]
[1751269829443,2.2682741,655.09,654.78,2.62]
[1751269830440,2.53404976,655.1,654.78,2.62]
[1751269831339,0.26577566,655.1,654.78,2.62]
[1751269832143,2.53404976,655.1,654.78,2.62]
[1751269834947,2.2682741,655.07,654.78,2.62]
[1751269835950,0.26577566,655.1,654.78,2.62]
[1751269837646,2.53404976,655.1,654.78,2.62]
[1751269837846,2.2682741,655.07,654.78,2.62]
[1751269839648,2.2682741,655.06,654.78,2.62]
[1751269840153,2.2682741,655.07,654.78,2.62]
[1751269840448,2.2682741,655.07,654.77,2.689]
[1751269843953,2.2682741,655.09,654.77,2.689]
[1751269844153,2.2682741,655.09,654.78,2.183]
[1751269845055,2.2682741,655.08,654.78,2.183]
[1751269845452,2.2682741,655.09,654.78,2.183]
[1751269845854,2.2682741,655.04,654.78,2.183]
[1751269846052,2.2682741,655.03,654.78,2.183]
[1751269846857,2.2682741,655.07,654.78,2.183]
[1751269848859,2.2682741,655.04,654.78,2.183]
[1751269849759,2.2682741,655.04,654.79,2.43]
[1751269850360,2.2682741,655.05,654.79,2.43]
[1751269851856,2.2682741,655.07,654.79,2.43]
[1751269852558,2.2682741,655.06,654.79,2.43]
[1751269852758,2.53404976,655.1,654.79,2.43]
[1751269853258,2.2682741,655.09,654.79,2.43]
[1751269853759,2.2682741,655.08,654.79,2.43]
[1751269854860,2.2682741,655.07,654.79,2.43]
[1751269856558,2.2682741,655.06,654.79,2.43]
[1751269856757,2.2682741,655.04,654.79,2.43]
[1751269857363,2.2682741,655.03,654.79,2.43]
[1751269857661,2.2682741,655.04,654.79,2.43]
[1751269860167,2.2682741,655.03,654.79,2.43]
[1751269861465,0.26577566,655.1,654.79,2.43]
[1751269861466,2.2682741,655.01,654.79,2.43]
[1751269861967,2.2682741,655.02,654.79,2.43]
[1751269862769,2.2682741,654.96,654.79,2.43]
[1751269863069,2.2682741,654.95,654.79,2.43]
[1751269863269,2.2682741,654.96,654.79,2.43]
[1751269863468,2.2682741,654.95,654.79,2.43]
[1751269863768,2.2682741,654.94,654.79,2.43]
[1751269865272,2.2682741,654.95,654.79,2.43]
[1751269865866,2.2682741,654.96,654.79,2.43]
[1751269867569,2.2682741,654.95,654.79,2.43]
[1751269868368,2.2682741,654.94,654.79,2.43]
[1751269869074,0.26577566,655.1,654.79,2.43]
[1751269869075,2.2682741,654.95,654.79,2.43]
[1751269869373,2.2682741,655.01,654.79,2.43]
[1751269869872,2.2682741,655.01,654.78,2.183]
[1751269872474,2.2682741,655.01,654.79,1.861]
[1751269876374,2.2682741,655.0,654.79,1.861]
[1751269876872,2.2682741,655.01,654.79,1.861]
[1751269878876,2.2682741,655.0,654.79,1.861]
[1751269879281,2.2682741,655.05,654.79,1.861]
[1751269879581,2.2682741,655.02,654.79,1.861]
[1751269880580,2.2682741,655.04,654.79,1.861]
[1751269882681,2.2682741,655.03,654.79,1.861]
[1751269884183,2.2682741,655.02,654.79,1.861]
[1751269884878,2.2682741,655.03,654.79,1.861]
[1751269886884,2.2682741,655.02,654.79,1.861]
[1751269887683,2.2682741,655.03,654.79,1.861]
[1751269889282,2.2682741,654.98,654.79,1.861]
[1751269890489,2.2682741,654.95,654.79,1.861]
[1751269890984,2.2682741,654.94,654.79,1.861]
[1751269891390,2.2682741,654.95,654.79,1.861]
[1751269891990,2.2682741,655.0,654.79,1.861]
[1751269893293,2.2682741,655.01,654.79,1.861]
[1751269893990,2.2682741,655.0,654.79,1.861]
[1751269895193,2.2682741,655.01,654.79,1.861]
[1751269895394,2.2682741,655.0,654.79,1.861]
[1751269895597,2.2682741,655.0,654.8,2.76]
[1751269896500,2.2682741,654.99,654.8,2.76]
[1751269897601,2.2682741,654.98,654.8,2.76]
[1751269899004,2.2682741,654.99,654.8,2.76]
[1751269899901,2.2682741,655.06,654.8,2.76]
[1751269901910,2.2682741,655.04,654.8,2.76]
[1751269902811,2.2682741,655.05,654.8,2.76]
[1751269905013,2.2682741,655.04,654.8,2.76]
[1751269906614,2.2682741,655.05,654.8,2.76]
[1751269907113,2.2682741,655.06,654.8,2.76]
[1751269909618,2.2682741,655.06,654.79,1.861]
[1751269909819,2.2682741,655.0,654.79,1.861]
[1751269910715,0.26577566,655.1,654.79,1.861]
[1751269910716,2.2682741,655.05,654.79,1.861]
[1751269912220,2.2682741,655.05,654.8,2.692]
[1751269912919,2.2682741,655.04,654.8,2.692]
[1751269913220,2.2682741,655.03,654.8,2.692]
[1751269914118,2.2682741,655.02,654.8,2.692]
[1751269917017,2.2682741,655.0,654.8,2.692]
[1751269917720,2.2682741,655.01,654.8,2.692]
[1751269918321,2.2682741,655.01,654.81,2.685]
[1751269919317,2.2682741,655.05,654.81,2.685]
[1751269920423,2.2682741,655.02,654.81,2.685]
[1751269920624,2.2682741,655.01,654.81,2.685]
[1751269921522,2.2682741,655.02,654.81,2.685]
[1751269923823,2.2682741,655.01,654.81,2.685]
[1751269925226,2.2682741,655.02,654.81,2.685]
[1751269925631,2.2682741,655.01,654.81,2.685]
[1751269927429,2.2682741,655.0,654.81,2.685]
[1751269927929,2.2682741,655.01,654.81,2.685]
[1751269929232,2.2682741,654.97,654.81,2.685]
[1751269931532,2.2682741,654.96,654.81,2.685]
[1751269931731,2.2682741,654.95,654.81,2.685]
[1751269932232,2.2682741,654.96,654.81,2.685]
[1751269932529,2.2682741,654.94,654.81,2.685]
[1751269932727,2.2682741,654.95,654.81,2.685]
[1751269932929,2.2682741,654.96,654.81,2.685]
[1751269934230,0.26577566,655.1,654.81,2.685]
[1751269936637,2.2682741,655.18,654.81,2.685]
[1751269936835,0.26576246,655.03,654.81,2.685]
[1751269944046,2.2682741,655.0,654.81,2.685]
[1751269945144,2.2682741,654.99,654.81,2.685]
[1751269947749,2.2682741,655.0,654.81,2.685]
[1751269948546,0.26576246,655.03,654.81,2.685]
[1751269955255,2.53403656,655.03,654.81,2.685]
[1751269957256,2.53403656,655.03,654.8,2.692]
[1751269958861,0.26576246,655.03,654.8,2.692]
[1751269959060,2.53403656,655.03,654.8,2.692]
[1751269959557,0.26576246,655.03,654.8,2.692]
[1751269959961,2.2682741,655.01,654.8,2.692]
[1751269960162,2.2682741,654.99,654.8,2.692]
[1751269960661,2.2682741,654.96,654.8,2.692]
[1751269960859,2.2682741,654.96,654.81,2.904]
[1751269963664,2.2682741,655.01,654.81,2.904]
[1751269968270,2.2682741,655.02,654.81,2.904]
[1751269968770,2.2682741,654.99,654.81,2.904]
[1751269969372,2.53403656,655.03,654.81,2.904]
[1751269972569,0.26576246,655.03,654.81,2.904]
[1751269973674,2.2682741,655.01,654.81,2.904]
[1751269975274,2.2682741,655.01,654.82,2.848]
[1751269976376,2.2682741,655.0,654.82,2.848]
[1751269979277,2.2682741,655.01,654.82,2.848]
[1751269982077,2.2682741,655.02,654.82,2.848]
[1751269982880,2.53403656,655.03,654.82,2.848]
[1751269983579,2.2682741,655.02,654.82,2.848]
[1751269983979,2.2682741,655.01,654.82,2.848]
[1751269985779,2.2682741,655.02,654.82,2.848]
[1751269989177,2.2682741,654.98,654.82,2.848]
[1751269989481,2.2682741,654.97,654.82,2.848]
[1751269991182,2.2682741,654.96,654.82,2.848]
[1751269991484,2.2682741,654.95,654.82,2.848]
[1751269993185,2.2682741,654.96,654.82,2.848]
[1751269995290,2.2682741,654.95,654.82,2.848]
[1751269995691,2.2682741,654.94,654.82,2.848]
[1751269996789,2.2682741,654.95,654.82,2.848]
[1751269997088,2.2682741,654.94,654.82,2.848]
[1751269998893,2.2682741,654.93,654.82,2.848]
[1751270000093,2.2682741,654.92,654.82,2.848]
[1751270000393,2.2682741,654.93,654.82,2.848]
[1751270002790,2.2682741,654.91,654.82,2.848]
[1751270004297,2.2682741,654.93,654.68,1.881]
[1751270004496,2.2682741,654.92,654.68,1.881]
[1751270006097,2.2682741,654.91,654.68,1.881]
[1751270006502,2.2682741,654.9,654.68,1.881]
[1751270006700,2.2682741,654.9,654.69,2.549]
[1751270007497,2.2682741,654.9,654.7,2.92]
[1751270007799,2.2682741,654.91,654.7,2.92]
[1751270010205,2.2682741,654.9,654.7,2.92]
[1751270010505,2.2682741,654.89,654.7,2.92]
[1751270011505,2.2682741,654.9,654.7,2.92]
[1751270014104,2.2682741,654.89,654.7,2.92]
[1751270015104,2.2682741,654.9,654.7,2.92]
[1751270015304,2.2682741,654.91,654.7,2.92]
[1751270016208,2.2682741,654.93,654.7,2.92]
[1751270017506,2.2682741,654.95,654.7,2.92]
[1751270017710,2.2682741,654.94,654.7,2.92]
[1751270019007,2.2682741,654.95,654.7,2.92]
[1751270021408,2.2682741,654.94,654.7,2.92]
[1751270022714,2.2682741,654.95,654.7,2.92]
[1751270024814,2.2682741,655.0,654.7,2.92]
[1751270025215,0.26576246,655.03,654.7,2.92]
[1751270025216,2.2682741,654.99,654.7,2.92]
[1751270027517,2.2682741,654.98,654.7,2.92]
[1751270028119,2.2682741,655.02,654.7,2.92]
[1751270028414,0.26576246,655.03,654.7,2.92]
[1751270028415,2.53403656,655.03,654.7,2.92]
[1751270029118,2.2682741,655.02,654.7,2.92]
[1751270034022,2.2682741,655.01,654.7,2.92]
[1751270034321,0.26576246,655.03,654.7,2.92]
[1751270034322,2.2682741,655.02,654.7,2.92]
[1751270034621,2.2682741,654.99,654.7,2.92]
[1751270036022,2.2682741,654.98,654.7,2.92]
[1751270037924,2.2682741,654.94,654.7,2.92]
[1751270040330,2.2682741,655.02,654.7,2.92]
[1751270041433,2.2682741,655.01,654.69,2.549]
[1751270042329,2.2682741,655.0,654.69,2.549]
[1751270045033,2.2682741,655.0,654.7,2.695]
[1751270045732,0.26576246,655.03,654.7,2.695]
[1751270048733,2.2682741,655.02,654.7,2.695]
[1751270051433,2.53403656,655.03,654.7,2.695]
[1751270052838,2.2682741,655.01,654.7,2.695]
[1751270053338,2.2682741,655.02,654.7,2.695]
[1751270055640,2.2682741,654.94,654.7,2.695]
[1751270055842,2.2682741,654.9,654.7,2.695]
[1751270056037,2.2682741,654.87,654.71,2.951]
[1751270056736,2.2682741,654.88,654.71,2.951]
[1751270058642,2.2682741,654.87,654.71,2.951]
[1751270059042,2.2682741,654.85,654.71,2.951]
[1751270059643,2.2682741,654.86,654.71,2.951]
[1751270060344,2.2682741,654.88,654.71,2.951]
[1751270062845,2.2682741,654.87,654.71,2.951]
[1751270064144,2.2682741,654.88,654.71,2.951]
[1751270064545,2.2682741,654.89,654.71,2.951]
[1751270064745,2.2682741,654.89,654.71,5.557]
[1751270065446,2.2682741,654.96,654.71,5.557]
[1751270066645,2.2682741,654.95,654.71,5.557]
[1751270067848,2.2682741,654.96,654.71,5.557]
[1751270068053,2.2682741,654.97,654.71,5.557]
[1751270073251,2.2682741,654.98,654.71,5.557]
[1751270073755,2.2682741,654.97,654.71,5.557]
[1751270075452,2.2682741,654.93,654.71,5.557]
[1751270076957,2.2682741,654.95,654.71,5.557]
[1751270077759,2.2682741,654.94,654.71,5.557]
[1751270078053,2.2682741,654.92,654.71,5.557]
[1751270078758,2.2682741,654.93,654.71,5.557]
[1751270078958,2.2682741,654.94,654.71,5.557]
[1751270079659,0.26576246,655.03,654.71,5.557]
[1751270093060,0.26576246,655.03,654.71,2.606]
[1751270093664,2.53403656,655.03,654.71,2.606]
[1751270094160,0.26576246,655.03,654.71,2.606]
[1751270095264,2.53403656,655.03,654.71,2.606]
[1751270095966,2.53403656,655.03,654.72,2.975]
[1751270097367,2.2682741,655.01,654.72,2.975]
[1751270097768,2.2682741,655.02,654.72,2.975]
[1751270100272,2.53403656,655.03,654.72,2.975]
[1751270102474,2.2682741,655.02,654.72,2.975]
[1751270103174,2.2682741,655.01,654.72,2.975]
[1751270103474,2.2682741,655.02,654.72,2.975]
[1751270103872,2.2682741,655.01,654.72,2.975]
[1751270104475,2.53403656,655.03,654.72,2.975]
[1751270105577,2.2682741,655.01,654.72,2.975]
[1751270107376,2.2682741,655.02,654.72,2.975]
[1751270107773,2.2682741,655.0,654.72,2.975]
[1751270108379,2.2682741,655.01,654.72,2.975]
[1751270109076,2.2682741,655.02,654.72,2.975]
[1751270110276,2.2682741,655.02,654.73,2.465]
[1751270110781,2.2682741,655.01,654.73,2.465]
[1751270111281,0.26576246,655.03,654.73,2.465]
[1751270121292,2.2682741,655.0,654.73,2.465]
[1751270122695,0.26576246,655.03,654.73,2.465]
[1751270122696,2.2682741,654.99,654.73,2.465]
[1751270122892,2.2682741,654.98,654.73,2.465]
[1751270124096,2.2682741,655.0,654.73,2.465]
[1751270125397,2.2682741,654.99,654.73,2.465]
[1751270126200,2.2682741,655.0,654.73,2.465]
[1751270126798,2.2682741,654.99,654.73,2.465]
[1751270127795,2.2682741,655.0,654.73,2.465]
[1751270127998,2.2682741,654.99,654.73,2.465]
[1751270130199,2.2682741,654.98,654.73,2.465]
[1751270131099,0.26576246,655.03,654.73,2.465]
[1751270131100,2.2682741,655.01,654.73,2.465]
[1751270131300,2.2682741,655.02,654.73,2.465]
[1751270131703,2.2682741,654.97,654.73,2.465]
[1751270132200,2.2682741,654.96,654.73,2.465]
[1751270134304,2.2682741,654.95,654.73,2.465]
[1751270134604,2.2682741,654.96,654.73,2.465]
[1751270135001,2.2682741,654.95,654.73,2.465]
[1751270135400,2.2682741,654.96,654.73,2.465]
[1751270137106,0.26580509,654.91,654.73,2.465]
[1751270141712,2.53407919,654.91,654.73,2.465]
[1751270142209,2.53407919,654.91,654.67,2.374]
[1751270142713,2.53407919,654.91,654.68,2.602]
[1751270143008,0.26580509,654.91,654.68,2.602]
[1751270145012,0.26580509,654.91,654.69,2.334]
[1751270164328,2.53407919,654.91,654.69,2.334]
[1751270165324,0.26580509,654.91,654.69,2.334]
[1751270184437,0.26580509,654.91,654.7,1.908]
[1751270201648,0.26580509,654.91,654.71,2.288]
[1751270205249,2.2682741,655.02,654.71,2.288]
[1751270205445,2.2682741,655.01,654.71,2.288]
[1751270205948,2.2682741,655.07,654.71,2.288]
[1751270206146,2.2682741,655.06,654.71,2.288]
[1751270206748,2.2682741,655.07,654.71,2.288]
[1751270207245,2.2682741,655.06,654.71,2.288]
[1751270207445,2.2682741,655.02,654.71,2.288]
[1751270211350,0.26580712,654.95,654.71,2.288]
[1751270224671,0.26580712,654.95,654.7,1.908]
[1751270225571,2.53408122,654.95,654.7,1.908]
[1751270225974,2.2682741,654.94,654.7,1.908]
[1751270227072,2.2682741,654.94,654.71,2.167]
[1751270229276,2.53408122,654.95,654.71,2.167]
[1751270229971,2.2682741,654.94,654.71,2.167]
[1751270230372,2.53408122,654.95,654.71,2.167]
[1751270230775,2.2682741,654.91,654.71,2.167]
[1751270231072,2.2682741,654.9,654.71,2.167]
[1751270231276,2.2682741,654.91,654.71,2.167]
[1751270231772,2.2682741,654.92,654.71,2.167]
[1751270232278,2.2682741,654.93,654.71,2.167]
[1751270232479,2.2682741,654.92,654.71,2.167]
[1751270232978,2.2682741,654.93,654.71,2.167]
[1751270235184,2.2682741,654.94,654.71,2.167]
[1751270235478,2.2682741,654.93,654.71,2.167]
[1751270235877,2.2682741,654.92,654.71,2.167]
[1751270236877,2.2682741,654.93,654.71,2.167]
[1751270237782,2.2682741,654.94,654.71,2.167]
[1751270238180,2.2682741,654.94,654.72,1.926]
[1751270239080,2.2682741,654.93,654.72,1.926]
[1751270240581,2.2682741,654.94,654.72,1.926]
[1751270241583,2.2682741,654.91,654.72,1.926]
[1751270242285,2.2682741,654.92,654.72,1.926]
[1751270242982,2.2682741,654.91,654.72,1.926]
[1751270243987,2.53408122,654.95,654.72,1.926]
[1751270244283,0.26580712,654.95,654.72,1.926]
[1751270269598,2.53408122,654.95,654.72,1.926]
[1751270270403,2.2682741,654.92,654.72,1.926]
[1751270270599,2.2682741,654.94,654.72,1.926]
[1751270271208,2.2682741,654.93,654.72,1.926]
[1751270272105,2.2682741,654.94,654.72,1.926]
[1751270273505,2.53408122,654.95,654.72,1.926]
[1751270274206,0.26580712,654.95,654.72,1.926]
[1751270275100,2.2682741,654.94,654.72,1.926]
[1751270275604,0.26580712,654.95,654.72,1.926]
[1751270282506,0.26580712,654.95,654.73,1.883]
[1751270290212,0.26580712,654.95,654.74,3.066]
[1751270327142,0.26580712,654.95,654.75,2.708]
[1751270339345,0.26580712,654.95,654.76,2.91]
[1751270349646,2.2682741,655.11,654.76,2.91]
[1751270350450,2.2682741,655.1,654.76,2.91]
[1751270351046,2.2682741,655.09,654.76,2.91]
[1751270352252,2.2682741,655.09,654.76,5.885]
[1751270353148,2.2682741,655.09,654.76,9.522]
[1751270353350,2.2682741,655.09,654.76,12.618]
[1751270353654,2.2682741,655.09,654.77,2.234]
[1751270354157,3.7804569,655.81,654.77,2.234]
[1751270354158,2.2682741,655.1,654.77,2.234]
[1751270355656,2.2682741,655.16,654.77,2.234]
[1751270356756,2.2682741,655.17,654.77,2.234]
[1751270356956,2.2682741,655.16,654.77,2.234]
[1751270357756,2.2682741,655.14,654.77,2.234]
[1751270358856,3.7804569,655.9,654.77,2.234]
[1751270358857,2.2682741,655.13,654.77,2.234]
[1751270359057,2.2682741,655.12,654.77,2.234]
[1751270359357,2.2682741,655.11,654.77,2.234]
[1751270360561,2.2682741,655.12,654.77,2.234]
[1751270360760,2.2682741,655.11,654.77,2.234]
[1751270361361,2.2682741,655.16,654.77,2.234]
[1751270363059,2.2682741,655.15,654.77,2.234]
[1751270364164,2.2682741,655.13,654.77,2.234]
[1751270364365,2.2682741,655.14,654.77,2.234]
[1751270365664,2.2682741,655.09,654.77,2.234]
[1751270365864,7.5609138,656.89,654.77,2.234]
[1751270365865,2.2682741,655.11,654.77,2.234]
[1751270366864,2.2682741,655.1,654.77,2.234]
[1751270371482,2.2682741,655.04,654.77,2.234]
[1751270371982,2.2682741,655.05,654.77,2.234]
[1751270372679,2.2682741,655.15,654.77,2.234]
[1751270372984,2.2682741,655.2,654.77,2.234]
[1751270375481,2.2682741,655.2,654.78,3.0]
[1751270375681,2.2682741,655.22,654.78,3.0]
[1751270376181,2.2682741,655.26,654.79,0.611]
[1751270376485,2.2682741,655.25,654.79,0.611]
[1751270376780,2.2682741,655.28,654.79,0.611]
[1751270377184,2.2682741,655.29,654.79,0.611]
[1751270377587,2.2682741,655.3,654.79,0.611]
[1751270378280,2.2682741,655.31,654.79,0.611]
[1751270378885,2.2682741,655.21,654.79,0.611]
[1751270379486,2.2682741,655.22,654.79,0.611]
[1751270379984,2.2682741,655.23,654.79,0.611]
[1751270380379,2.2682741,655.24,654.79,0.611]
[1751270381582,2.2682741,655.24,654.8,2.975]
[1751270382288,2.2682741,655.25,654.8,2.975]
[1751270382885,2.2682741,655.18,654.8,2.975]
[1751270383087,2.2682741,655.21,654.8,2.975]
[1751270383283,2.2682741,655.22,654.8,2.975]
[1751270384688,2.2682741,655.23,654.8,2.975]
[1751270385986,2.2682741,655.25,654.8,2.975]
[1751270386392,2.2682741,655.24,654.8,2.975]
[1751270387487,2.2682741,655.24,654.81,2.694]
[1751270387788,2.2682741,655.23,654.81,2.694]
[1751270388493,2.2682741,655.2,654.81,2.694]
[1751270390690,2.2682741,655.21,654.81,2.694]
[1751270393097,2.2682741,655.22,654.81,2.694]
[1751270393698,2.2682741,655.19,654.81,2.694]
[1751270394397,2.2682741,655.18,654.81,2.694]
[1751270395295,2.2682741,655.19,654.82,2.575]
[1751270395999,2.2682741,655.15,654.82,2.575]
[1751270396496,2.2682741,655.13,654.82,2.575]
[1751270397100,2.2682741,655.12,654.82,2.575]
[1751270397801,2.2682741,655.12,654.83,2.931]
[1751270398000,2.2682741,655.13,654.83,2.931]
[1751270398402,2.2682741,655.12,654.83,2.931]
[1751270399102,2.2682741,655.15,654.83,2.931]
[1751270400100,12.097462,657.37,654.83,2.931]
[1751270400500,2.285429,655.27,654.83,2.931]
[1751270401305,2.285429,655.25,654.84,5.916]
[1751270401604,2.285429,655.24,654.84,5.916]
[1751270402105,2.285429,655.25,654.84,5.916]
[1751270404207,2.285429,655.24,654.84,5.916]
[1751270404408,2.285429,655.25,654.84,5.916]
[1751270404906,12.18895,657.24,654.84,5.916]
[1751270404907,2.285429,655.27,654.84,5.916]
[1751270405713,2.285429,655.28,654.84,5.916]
[1751270406113,2.285429,655.27,654.84,5.916]
[1751270406312,2.285429,655.28,654.84,5.916]
[1751270407314,2.285429,655.27,654.84,5.916]
[1751270408714,2.285429,655.24,654.84,5.916]
[1751270409610,2.285429,655.25,654.84,5.916]
[1751270410510,2.285429,654.99,654.84,5.916]
[1751270411514,2.285429,654.98,654.84,5.916]
[1751270413016,2.285429,654.97,654.84,5.916]
[1751270415115,2.285429,654.97,654.84,3.584]
[1751270415518,2.285429,654.97,654.83,2.931]
[1751270415519,2.285429,654.98,654.83,2.931]
[1751270415716,2.285429,654.97,654.83,2.931]
[1751270419325,2.285429,654.96,654.83,2.931]
[1751270420021,2.285429,654.99,654.83,2.931]
[1751270421625,2.285429,654.98,654.83,2.931]
[1751270423027,2.285429,654.96,654.83,2.931]
[1751270423229,2.285429,654.95,654.83,2.931]
[1751270424631,2.285429,654.96,654.83,2.931]
[1751270428232,2.285429,654.95,654.83,2.931]
[1751270429934,2.285429,654.92,654.83,2.931]
[1751270430130,2.285429,654.93,654.83,2.931]
[1751270430332,2.285429,654.94,654.83,2.931]
[1751270430733,2.285429,654.95,654.83,2.931]
[1751270431027,2.285429,654.93,654.83,2.931]
[1751270431233,2.285429,654.92,654.83,2.931]
[1751270431630,2.285429,654.93,654.83,2.931]
[1751270432034,2.285429,654.92,654.83,2.931]
[1751270432329,3.809049,655.38,654.83,2.931]
[1751270432330,2.285429,654.89,654.83,2.931]
[1751270432836,2.285429,654.91,654.83,2.931]
[1751270433434,2.285429,654.92,654.83,2.931]
[1751270433633,2.285429,654.9,654.83,2.931]
[1751270433937,2.285429,654.9,654.35,3.041]
[1751270434133,2.285429,654.9,654.36,1.6275518]